fUSD/lending_fUSD_20240827
["ID","MTS","AMOUNT","RATE_DAILY","PERIOD"]
[336297430,1724761940910,437.45,8.219e-05,2]
[336297432,1724762039104,150.0,9.852e-05,2]
[336297433,1724762039131,30.5,9.852e-05,2]
[336297434,1724762077837,-919.50202293,9.91e-05,2]
[336297435,1724762170897,450.0,9.802e-05,2]
[336297436,1724762215534,200.0,9.745e-05,2]
[336297437,1724762217577,625.51,9.726e-05,2]
[336297438,1724762294472,150.0,9.711e-05,2]
[336297439,1724762318237,198.18163781,9.899e-05,2]
[336297440,1724762320764,285.13,9.748e-05,2]
[336297441,1724762321045,200.0,9.748e-05,2]
[336297445,1724762517985,180.52,9.683e-05,2]
[336297447,1724762592005,429.95,8.219e-05,2]
[336297450,1724762647386,250.0,9.611e-05,2]
[336297452,1724762730727,840.0,9.736e-05,2]
[336297455,1724762762493,155.0,9.899e-05,2]
[336297456,1724762774755,165.0,9.899e-05,2]
[336297459,1724762809795,455.57,9.663e-05,2]
[336297460,1724762824191,320.37850264,9.899e-05,2]
[336297500,1724762868375,379.32,9.649e-05,2]
[336297501,1724762907884,185.00937477,9.899e-05,2]
[336297502,1724762983921,1235.62,9.49e-05,2]
[336297503,1724762994864,174.36,9.557e-05,2]
[336297521,1724763032106,-255.03150906,9.91e-05,2]
[336297522,1724763032116,-264.85272817,9.929e-05,2]
[336297523,1724763032125,-155.0,9.943e-05,2]
[336297524,1724763032135,-118.41433572,9.962e-05,2]
[336297525,1724763032147,-106.79361234,9.962e-05,2]
[336297526,1724763032157,-3406.47446305,9.988e-05,2]
[336297527,1724763032166,-317.13499877,9.988e-05,2]
[336297528,1724763032176,-287.86811958,9.988e-05,2]
[336297529,1724763032188,-641.78390334,9.988e-05,2]
[336297530,1724763032197,-155.0,9.999e-05,2]
[336297531,1724763032207,-108.73235849,9.999e-05,2]
[336297532,1724763032218,-337.01913656,9.999e-05,2]
[336297533,1724763032230,-2590.45015145,9.999e-05,2]
[336297534,1724763032239,-293.79422022,9.999e-05,2]
[336297535,1724763032248,-359.51977186,9.999e-05,2]
[336297536,1724763032265,-400.0,0.0001,3]
[336297537,1724763032274,-1050.0,0.0001,2]
[336297538,1724763032284,-156.38894449,0.0001,2]
[336297539,1724763032294,-302.11196128,0.00010009,2]
[336297540,1724763032303,-419.90727343,0.00010026,2]
[336297541,1724763032313,-155.0,0.00010026,2]
[336297542,1724763032322,-499.99,0.00010026,2]
[336297543,1724763032331,-1362.44,0.00010097,2]
[336297544,1724763032340,-900.0,0.000101,3]
[336297545,1724763032351,-173.97,0.00010152,2]
[336297546,1724763032360,-1400.0,0.000102,3]
[336297547,1724763032370,-1900.0,0.000103,3]
[336297548,1724763032380,-2300.0,0.000104,3]
[336297549,1724763032389,-429.95,0.00010458,2]
[336297550,1724763032399,-400.0,0.000105,3]
[336297551,1724763032409,-1263.0163,0.000106,2]
[336297552,1724763032419,-2972.6467,0.000106,2]
[336297553,1724763032428,-400.0,0.000106,3]
[336297554,1724763032438,-150.0,0.00010689,2]
[336297555,1724763032447,-1306.44389609,0.0001069,2]
[336297556,1724763032457,-8744.69390815,0.00010699,2]
[336297557,1724763032467,-155.31499189,0.00010699,2]
[336297559,1724763032476,-16095.27255391,0.000107,2]
[336297561,1724763032491,-335.08950845,0.000107,2]
[336297564,1724763032505,-276.52,0.000107,2]
[336297566,1724763032516,-2073.79125364,0.000107,2]
[336297568,1724763032534,-3350.0,0.000107,2]
[336297571,1724763032551,-637.89262546,0.000107,2]
[336297574,1724763032565,-75963.53575854,0.000107,2]
[336297577,1724763032574,-1000.0,0.000107,2]
[336297579,1724763032584,-4417.0927,0.000107,2]
[336297581,1724763032594,-139500.6756,0.000107,2]
[336297583,1724763032604,-156.4355,0.000107,2]
[336297585,1724763032613,-500.0,0.000107,2]
[336297587,1724763032623,-454.1136,0.000107,2]
[336297589,1724763032632,-9416.952201,0.000107,2]
[336297591,1724763032641,-174.43634856,0.000107,2]
[336297593,1724763032651,-400.0,0.000107,3]
[336297595,1724763032661,-176.11046373,0.000107,2]
[336297597,1724763032671,-1390.28064966,0.000107,2]
[336297599,1724763032680,-500.0,0.00010713,2]
[336297601,1724763032690,-500.0,0.00010714,2]
[336297603,1724763032699,-500.0,0.00010714,2]
[336297605,1724763032709,-7500.0,0.00010722,2]
[336297607,1724763032719,-294.67456,0.0001074,2]
[336297609,1724763032729,-500.0,0.00010773,2]
[336297611,1724763032738,-150.59,0.0001079,2]
[336297613,1724763032747,-150.59,0.0001079,2]
[336297615,1724763032760,-150.59,0.0001079,2]
[336297616,1724763032769,-150.59,0.0001079,2]
[336297617,1724763032779,-150.59,0.0001079,2]
[336297618,1724763032788,-150.59,0.0001079,2]
[336297619,1724763032799,-150.59,0.0001079,2]
[336297620,1724763032808,-150.59,0.0001079,2]
[336297621,1724763032818,-150.59,0.0001079,2]
[336297622,1724763032827,-150.59,0.0001079,2]
[336297623,1724763032837,-150.59,0.0001079,2]
[336297624,1724763032847,-5821.20261812,0.00010793,2]
[336297625,1724763032858,-12922.44709498,0.00010793,2]
[336297626,1724763032868,-160.81649746,0.00010797,2]
[336297627,1724763032878,-640.45999999,0.00010799,2]
[336297628,1724763032887,-495968.60188661,0.000108,2]
[336297629,1724763032907,-3377.03584135,0.000108,2]
[336297630,1724763033127,-312.4205569,0.000108,2]
[336297631,1724763033147,-803.69303858,0.000108,2]
[336297632,1724763033159,-3749.97599785,0.000108,2]
[336297633,1724763033174,-970.11929781,0.000108,2]
[336297634,1724763033186,-653.26372546,0.000108,2]
[336297635,1724763033197,-4205.52649254,0.000108,2]
[336297640,1724763038689,-299.8711819,9.91e-05,2]
[336297641,1724763038700,-151.98228612,0.000107,2]
[336297642,1724763038709,-207.89785215,0.000108,2]
[336297643,1724763038746,-430.49985667,0.000108,2]
[336297644,1724763038762,-10252.81543227,0.000108,2]
[336297645,1724763038806,-1284.02209181,0.000108,2]
[336297646,1724763038818,-3962.55749776,0.000108,2]
[336297647,1724763038830,-2497.15239399,0.000108,2]
[336297648,1724763038862,-312.0,0.000108,2]
[336297649,1724763038920,-8323.234,0.000108,2]
[336297650,1724763038975,-1005.71128686,0.000108,2]
[336297653,1724763038987,-315.16164704,0.000108,2]
[336297774,1724763040448,-171284.76436915,0.000108,2]
[336297780,1724763040505,-296.238,0.000108,2]
[336297797,1724763040669,-348972.49482023,0.000108,2]
[336297803,1724763040724,-250.0,0.000108,2]
[336297806,1724763040735,-1047.09835683,0.000108,2]
[336298028,1724763043267,-3120.67128,0.000108,2]
[336298287,1724763046286,-2067.43178461,0.000108,2]
[336298294,1724763046343,-759.36481128,0.000108,2]
[336298301,1724763046401,-889.16444947,0.000108,2]
[336298750,1724763181319,415.49,8.219e-05,2]
[336298751,1724763305599,328.0,9.902e-05,2]
[336298754,1724763579991,-284.30977716,9.92e-05,2]
[336298756,1724763659986,150.0,9.874e-05,2]
[336298757,1724763660009,150.0,9.874e-05,2]
[336298758,1724763660034,150.0,9.874e-05,2]
[336298759,1724763660056,150.0,9.874e-05,2]
[336298760,1724763660079,150.0,9.874e-05,2]
[336298761,1724763660100,150.0,9.874e-05,2]
[336298762,1724763660120,150.0,9.874e-05,2]
[336298763,1724763660141,244.84312648,9.874e-05,2]
[336298764,1724763660164,2170.70687352,9.874e-05,2]
[336298765,1724763675677,157.6126,9.82e-05,2]
[336298766,1724763682991,409.29,8.219e-05,2]
[336298768,1724763756999,150.0,9.891e-05,2]
[336298769,1724763757021,14.83,9.891e-05,2]
[336298771,1724763793984,150.0,9.891e-05,2]
[336298772,1724763794006,150.0,9.891e-05,2]
[336298773,1724763794028,137.83,9.891e-05,2]
[336298775,1724763846476,-448.36,9.907e-05,2]
[336298776,1724763877557,500.0,8.22e-05,2]
[336298777,1724763893114,150.0,9.895e-05,2]
[336298778,1724763893136,150.0,9.895e-05,2]
[336298779,1724763893159,194.89147167,9.895e-05,2]
[336298780,1724763893181,242.70852833,9.895e-05,2]
[336298781,1724763900554,228.02685282,8.22e-05,2]
[336298782,1724763900662,500.0,8.22e-05,2]
[336298783,1724763900692,500.0,8.22e-05,2]
[336298784,1724763902136,500.0,9.59e-05,2]
[336298785,1724763902175,500.0,9.59e-05,2]
[336298786,1724763903411,15535.94916928,9.86e-05,2]
[336298789,1724763927557,700.0,8.22e-05,2]
[336298790,1724763929173,700.0,9.59e-05,2]
[336298791,1724763931167,-150.0,9.907e-05,2]
[336298792,1724763931810,-150.0,9.907e-05,2]
[336298795,1724763966436,191.26,9.905e-05,2]
[336298796,1724764020572,156.69,9.891e-05,2]
[336298807,1724764030737,504.20382992,9.899e-05,2]
[336298808,1724764037873,249.57213866,9.899e-05,2]
[336298809,1724764048263,305.0,9.905e-05,2]
[336298810,1724764140603,180.5,9.889e-05,2]
[336298826,1724764232324,-295.33202042,9.999e-05,2]
[336298827,1724764232337,-11.61142998,9.999e-05,2]
[336298828,1724764232347,-255.6,0.00010069,2]
[336298829,1724764232357,-285.78356926,0.00010471,2]
[336298830,1724764232426,-123.50643074,0.00010471,2]
[336298831,1724764232436,-203.29407264,0.00010566,2]
[336298832,1724764232447,-323.19949662,0.00010566,2]
[336298833,1724764232485,-2519.79447075,0.00010566,2]
[336298834,1724764232494,-3405.26733197,0.00010566,2]
[336298835,1724764232503,-300.0,0.00010599,2]
[336298836,1724764232512,-49665.9738,0.000106,2]
[336298837,1724764232522,-387.56049,0.0001069,2]
[336298838,1724764232531,-8000.6901,0.000107,2]
[336298839,1724764232541,-421.33,0.000107,2]
[336298840,1724764232550,-174.43634856,0.000107,2]
[336298841,1724764232559,-7500.0,0.000107,2]
[336298842,1724764232569,-359.51329334,0.000107,2]
[336298843,1724764232578,-1555.72,0.00010711,2]
[336298844,1724764232587,-523.02806141,0.00010713,2]
[336298845,1724764232596,-500.0,0.00010714,2]
[336298846,1724764232606,-286.44,0.00010714,2]
[336298847,1724764232615,-499.99,0.0001079,2]
[336298848,1724764232624,-150.6,0.0001079,2]
[336298849,1724764232633,-150.6,0.0001079,2]
[336298850,1724764232642,-150.6,0.0001079,2]
[336298851,1724764232652,-150.6,0.0001079,2]
[336298852,1724764232661,-21273.7507573,0.00010793,2]
[336298853,1724764232672,-160.30138954,0.00010797,2]
[336298854,1724764232682,-504.0,0.000108,2]
[336298855,1724764232691,-178647.88838366,0.000108,2]
[336298856,1724764232703,-547.44256848,0.000108,2]
[336298857,1724764238346,-316.90113525,9.999e-05,2]
[336298858,1724764238356,-1055.29886475,0.000108,2]
[336298859,1724764238402,-1922.25770116,0.000108,2]
[336298860,1724764238514,-870.0340065,0.000108,2]
[336298861,1724764238525,-669.21054979,0.000108,2]
[336298867,1724764240485,-121551.29540793,0.000108,2]
[336298868,1724764240496,-49450.0,0.000108,2]
[336298869,1724764240593,-603.96718735,0.000108,2]
[336298870,1724764240605,-3543.8506192,0.000108,2]
[336298871,1724764240616,-1567.71361186,0.000108,2]
[336298872,1724764240760,-1289.90576999,0.000108,2]
[336299153,1724764243655,-850.76708041,0.000108,2]
[336299335,1724764246382,-2925.7355855,0.000108,2]
[336299336,1724764246443,-3559.9489424,0.000108,2]
[336299337,1724764246607,-9589.50967578,0.000108,2]
[336299344,1724764326320,412.13,8.219e-05,2]
[336299345,1724764496963,174.36,9.877e-05,2]
[336299349,1724764690020,291.7,9.819e-05,2]
[336299351,1724764713083,1000.0,9.84e-05,2]
[336299356,1724764785006,398.87,9.832e-05,2]
[336299359,1724764813205,405.53,8.219e-05,2]
[336299361,1724764827161,569.05,9.801e-05,2]
[336299362,1724764827394,569.05,9.804e-05,2]
[336299363,1724764827621,569.05,9.806e-05,2]
[336299364,1724764828062,569.05,9.809e-05,2]
[336299365,1724764828250,569.05,9.811e-05,2]
[336299366,1724764828462,569.05,9.814e-05,2]
[336299367,1724764828889,569.05,9.816e-05,2]
[336299368,1724764829100,569.05,9.819e-05,2]
[336299369,1724764829321,569.05,9.822e-05,2]
[336299370,1724764829589,569.05,9.824e-05,2]
[336299371,1724764829780,569.05,9.827e-05,2]
[336299372,1724764830001,569.05,9.829e-05,2]
[336299373,1724764830220,569.05,9.832e-05,2]
[336299374,1724764830429,569.05,9.834e-05,2]
[336299375,1724764830906,569.05,9.837e-05,2]
[336299376,1724764830951,569.05,9.84e-05,2]
[336299377,1724764831192,569.05,9.842e-05,2]
[336299378,1724764831406,569.05,9.845e-05,2]
[336299379,1724764831606,569.05,9.847e-05,2]
[336299380,1724764831933,569.05,9.85e-05,2]
[336299386,1724765010192,170.35,9.811e-05,2]
[336299399,1724765174694,155.0,9.899e-05,2]
[336299400,1724765186425,291.7,9.828e-05,2]
[336299401,1724765205011,204.52903173,9.899e-05,2]
[336299402,1724765205665,365.85866968,9.899e-05,2]
[336299403,1724765218627,569.31809242,9.899e-05,2]
[336299404,1724765223388,284.30977716,9.899e-05,2]
[336299439,1724765258418,200.0,9.769e-05,2]
[336299440,1724765267553,359.51977186,9.899e-05,2]
[336299442,1724765322732,300.27,9.786e-05,2]
[336299443,1724765323655,155.00000007,9.899e-05,2]
[336299444,1724765340645,399.07,8.219e-05,2]
[336299470,1724765417311,155.10601928,9.899e-05,2]
[336299479,1724765431503,-424.51363552,9.916e-05,2]
[336299480,1724765431561,-1753.50436072,9.916e-05,2]
[336299481,1724765431571,-152.96,9.941e-05,2]
[336299482,1724765431581,-156.45452687,9.962e-05,2]
[336299483,1724765431595,-1276.0146638,9.962e-05,2]
[336299484,1724765431605,-531.59072155,9.962e-05,2]
[336299485,1724765431615,-2387.97522321,9.962e-05,2]
[336299486,1724765431624,-1607.94443947,9.999e-05,2]
[336299487,1724765431633,-478.67,9.999e-05,2]
[336299488,1724765431642,-500.0,9.999e-05,2]
[336299489,1724765431652,-500.0,9.999e-05,2]
[336299490,1724765431661,-185.56,9.999e-05,2]
[336299491,1724765431670,-111.478557,9.999e-05,2]
[336299492,1724765431683,-173.581443,9.999e-05,2]
[336299493,1724765431693,-500.0,9.999e-05,2]
[336299494,1724765431703,-230.34,9.999e-05,2]
[336299495,1724765431712,-945.3388304,0.0001,2]
[336299496,1724765431723,-4054.6611696,0.0001,2]
[336299497,1724765431733,-887.81,0.00010097,2]
[336299498,1724765431743,-363.27,0.00010097,2]
[336299499,1724765431752,-169.31117399,0.00010386,2]
[336299500,1724765431762,-399.07,0.00010467,2]
[336299501,1724765431771,-3197.65543474,0.00010467,2]
[336299502,1724765431790,-1324.35936226,0.00010467,2]
[336299503,1724765431801,-628.42,0.00010467,2]
[336299504,1724765431812,-446.09825665,0.00010467,2]
[336299505,1724765431824,-577.5783648,0.00010467,2]
[336299506,1724765431837,-1152.75568561,0.00010467,2]
[336299507,1724765431848,-3404.77289594,0.00010467,2]
[336299508,1724765431858,-3406.47446305,0.00010566,2]
[336299509,1724765431867,-3488.96906997,0.000106,2]
[336299510,1724765431894,-1676.12452515,0.000106,2]
[336299511,1724765431906,-293.41476327,0.000106,2]
[336299512,1724765431917,-2248.6741294,0.000106,2]
[336299513,1724765431929,-1718.97890566,0.000106,2]
[336299514,1724765431941,-2852.7448324,0.000106,2]
[336299515,1724765431953,-2331.32555382,0.000106,2]
[336299520,1724765437752,-14042.43253206,0.000106,2]
[336299521,1724765437915,-2646.2132724,0.000106,2]
[336299522,1724765437982,-507.7272085,0.000106,2]
[336299523,1724765437994,-702.12138426,0.000106,2]
[336299524,1724765438006,-21912.83492311,0.000106,2]
[336299525,1724765438015,-1938.7076,0.000106,2]
[336299526,1724765438024,-4877.3977,0.000106,2]
[336299527,1724765438034,-1000.0,0.000106,2]
[336299528,1724765438043,-304.48152,0.0001069,2]
[336299529,1724765438053,-1000.0,0.000107,2]
[336299530,1724765438063,-26072.14347039,0.000107,2]
[336299531,1724765438075,-411.01981051,0.000107,2]
[336299532,1724765438086,-1120.66502401,0.000107,2]
[336299533,1724765438106,-12212.22040255,0.000107,2]
[336299534,1724765438117,-1618.27664627,0.000107,2]
[336299535,1724765438128,-5526.0024262,0.000107,2]
[336299536,1724765438139,-1886.88,0.000107,2]
[336299537,1724765438155,-878.53945113,0.000107,2]
[336299538,1724765438167,-1004.60404111,0.000107,2]
[336299539,1724765438178,-296.50190526,0.000107,2]
[336299540,1724765438189,-3816.08831386,0.000107,2]
[336299541,1724765438200,-343.26358931,0.000107,2]
[336299542,1724765438211,-879.14563992,0.000107,2]
[336299548,1724765439611,-1105.3720955,0.000107,2]
[336299550,1724765439623,-707.12336694,0.000107,2]
[336299551,1724765439783,-135832.81131704,0.000107,2]
[336299552,1724765439793,-3237.1381,0.000107,2]
[336299553,1724765439802,-500.0,0.000107,2]
[336299554,1724765439812,-88479.2731,0.000107,2]
[336299555,1724765439822,-8229.3478,0.000107,2]
[336299556,1724765439831,-183.97398844,0.000107,2]
[336299557,1724765439841,-163.71861537,0.000107,2]
[336299558,1724765439851,-1106.89485806,0.000107,2]
[336299559,1724765439861,-364.78118377,0.000107,2]
[336299560,1724765439870,-500.0,0.00010714,2]
[336299561,1724765439879,-500.0,0.00010773,2]
[336299562,1724765439889,-176.11046373,0.0001078,2]
[336299563,1724765439898,-150.62,0.0001079,2]
[336299564,1724765439908,-150.62,0.0001079,2]
[336299565,1724765439917,-150.62,0.0001079,2]
[336299566,1724765439925,-15761.3967127,0.00010793,2]
[336299567,1724765439934,-306.8299985,0.00010793,2]
[336299568,1724765439944,-483.092805,0.00010793,2]
[336299569,1724765439954,-157.70896675,0.00010797,2]
[336299570,1724765439964,-1193.98934041,0.00010799,2]
[336299571,1724765439974,-1800.22894327,0.00010799,3]
[336299572,1724765439983,-452971.36641516,0.000108,2]
[336299573,1724765439999,-15607.50524251,0.000108,2]
[336299574,1724765440011,-337.38156464,0.000108,2]
[336299575,1724765440022,-460.28045353,0.000108,2]
[336299576,1724765440033,-2143.85926986,0.000108,2]
[336299577,1724765440044,-312.525,0.000108,2]
[336299578,1724765440055,-527.39556223,0.000108,2]
[336299579,1724765440083,-1510.21004475,0.000108,2]
[336299795,1724765442639,-22982.3562768,0.000108,2]
[336299818,1724765442868,-2954.48005293,0.000108,2]
[336300673,1724765659880,150.0,9.783e-05,2]
[336300674,1724765659905,21.66,9.783e-05,2]
[336300675,1724765668279,291.7,9.783e-05,2]
[336300676,1724765691287,-304.0,9.909e-05,2]
[336300677,1724765705257,156.39994213,9.899e-05,2]
[336300678,1724765715626,-205.0,9.909e-05,2]
[336300679,1724765732474,548.21896485,9.899e-05,2]
[336300680,1724765742423,419.90727343,9.899e-05,2]
[336300681,1724765745464,305.25787579,9.899e-05,2]
[336300682,1724765752538,840.0,9.83e-05,2]
[336300683,1724765883033,150.0,9.9e-05,2]
[336300684,1724765883065,31.99,9.9e-05,2]
[336300685,1724765890844,150.0,8.219e-05,2]
[336300686,1724765890868,150.0,8.219e-05,2]
[336300687,1724765890890,86.35,8.219e-05,2]
[336300688,1724765928338,150.13,9.809e-05,2]
[336300689,1724766167459,150.0,9.767e-05,2]
[336300690,1724766167484,16.64,9.767e-05,2]
[336300692,1724766252862,270.58164358,9.899e-05,2]
[336300693,1724766296293,328.0,9.764e-05,2]
[336300694,1724766331261,2345.00323908,9.899e-05,2]
[336300695,1724766403938,150.0,8.219e-05,2]
[336300696,1724766403962,150.0,8.219e-05,2]
[336300697,1724766403985,67.03,8.219e-05,2]
[336300714,1724766489010,150.13,9.759e-05,2]
[336300767,1724766631640,-155.0,9.91e-05,2]
[336300768,1724766631649,-359.51977186,9.943e-05,2]
[336300769,1724766631659,-515.27605672,9.999e-05,2]
[336300770,1724766631668,-446.99135391,0.0001,2]
[336300771,1724766631679,-77.75588468,0.0001,2]
[336300772,1724766631689,-300.0,0.0001,3]
[336300773,1724766631699,-1050.0,0.0001,2]
[336300774,1724766631710,-177.0841297,0.000101,3]
[336300775,1724766631722,-422.9158703,0.000101,3]
[336300776,1724766631731,-900.0,0.000102,3]
[336300777,1724766631740,-150.0,0.00010274,2]
[336300778,1724766631750,-1200.0,0.000103,3]
[336300779,1724766631760,-1500.0,0.000104,3]
[336300780,1724766631769,-963.63707643,0.00010471,2]
[336300781,1724766631779,-367.03,0.00010471,2]
[336300782,1724766631788,-300.0,0.000105,3]
[336300783,1724766631797,-3406.47446305,0.00010505,2]
[336300784,1724766631806,-150.0,0.00010581,2]
[336300785,1724766631815,-150.0,0.00010581,2]
[336300786,1724766631825,-150.0,0.00010581,2]
[336300787,1724766631834,-300.0,0.000106,3]
[336300788,1724766631843,-322.96707,0.0001069,2]
[336300789,1724766631852,-165.74195783,0.000107,2]
[336300790,1724766631861,-499.99,0.000107,2]
[336300791,1724766631871,-300.0,0.000107,3]
[336300792,1724766631880,-500.0,0.00010713,2]
[336300793,1724766631891,-500.0,0.00010714,2]
[336300794,1724766631900,-500.0,0.00010714,2]
[336300795,1724766631909,-150.62,0.0001079,2]
[336300796,1724766631919,-150.62,0.0001079,2]
[336300797,1724766631928,-271.5234082,0.00010793,2]
[336300798,1724766631938,-299.07893086,0.00010793,2]
[336300799,1724766631955,-1012.2128544,0.00010793,2]
[336300800,1724766631977,-3118.66555,0.00010793,2]
[336300801,1724766631998,-1500.0,0.00010793,2]
[336300803,1724766637879,-1165.26374629,0.00010793,2]
[336300804,1724766637900,-571.14240892,0.00010793,2]
[336300807,1724766639932,-834.30484756,0.00010793,2]
[336300808,1724766639943,-2180.99679253,0.00010793,2]
[336300827,1724766640377,-531.48622268,0.00010793,2]
[336301049,1724766642838,-1877.275056,0.00010793,2]
[336301050,1724766643003,-1056.26774816,0.00010793,2]
[336301051,1724766643012,-100000.000001,0.00010799,2]
[336301052,1724766643021,-1193.9893404,0.00010799,2]
[336301053,1724766643030,-84649.74291044,0.000108,2]
[336301061,1724766645663,-186900.0,0.000108,2]
[336301062,1724766645946,-7013.98816836,0.000108,2]
[336301063,1724766649782,150.0,9.9e-05,2]
[336301064,1724766649803,150.0,9.9e-05,2]
[336301065,1724766649824,150.0,9.9e-05,2]
[336301066,1724766649846,150.0,9.9e-05,2]
[336301067,1724766649867,150.0,9.9e-05,2]
[336301068,1724766649889,169.50202293,9.9e-05,2]
[336301069,1724766649913,4080.49797707,9.9e-05,2]
[336301070,1724767086094,376.78,8.219e-05,2]
[336301089,1724767347558,150.0,9.792e-05,2]
[336301091,1724767393250,150.0,9.793e-05,2]
[336301092,1724767393271,46.86,9.793e-05,2]
[336301096,1724767451039,262.4,9.763e-05,2]
[336301099,1724767460377,-204.63738068,9.91e-05,2]
[336301101,1724767480040,-202.15867118,9.91e-05,2]
[336301102,1724767489263,-192.46541727,9.91e-05,2]
[336301103,1724767494496,-155.0,9.91e-05,2]
[336301104,1724767511833,150.0,9.83e-05,2]
[336301105,1724767511864,150.0,9.83e-05,2]
[336301106,1724767517074,150.0,9.764e-05,2]
[336301108,1724767546811,150.0,9.758e-05,2]
[336301109,1724767546833,150.0,9.758e-05,2]
[336301110,1724767546854,142.16,9.758e-05,2]
[336301112,1724767592264,370.38,8.219e-05,2]
[336301113,1724767600804,155.19086348,9.899e-05,2]
[336301114,1724767618249,-911.5120427,9.909e-05,2]
[336301157,1724767714092,150.0,9.81e-05,2]
[336301206,1724767762285,150.0,9.774e-05,2]
[336301207,1724767762310,298.36,9.774e-05,2]
[336301208,1724767762332,471.15,9.774e-05,2]
[336301213,1724767820153,266.84672263,9.899e-05,2]
[336301229,1724767831822,-197.57757341,9.91e-05,2]
[336301230,1724767831832,-737.6,9.97e-05,2]
[336301231,1724767831841,-300.0,9.998e-05,2]
[336301232,1724767831851,-190.58393283,9.999e-05,2]
[336301233,1724767831862,-2015.10193701,9.999e-05,2]
[336301234,1724767831875,-18670.50840996,9.999e-05,2]
[336301235,1724767831890,-2084.775,9.999e-05,2]
[336301236,1724767831901,-849.36959246,9.999e-05,2]
[336301237,1724767831912,-1133.16129937,9.999e-05,2]
[336301238,1724767831924,-1243.00176,9.999e-05,2]
[336301239,1724767831935,-16033.8079787,9.999e-05,2]
[336301240,1724767831944,-500.0,9.999e-05,2]
[336301241,1724767831953,-378.04,9.999e-05,2]
[336301242,1724767831962,-160.09325735,9.999e-05,2]
[336301243,1724767831972,-5000.0,0.0001,2]
[336301244,1724767831982,-444.93535409,0.00010009,2]
[336301245,1724767831991,-313.76877667,0.00010009,2]
[336301246,1724767832001,-266.68,0.0001002,2]
[336301247,1724767832010,-239.12774171,0.00010351,2]
[336301248,1724767832019,-150.0,0.000104,2]
[336301249,1724767832029,-499.99,0.000104,2]
[336301250,1724767832039,-370.38,0.00010465,2]
[336301251,1724767832049,-2380.42,0.00010471,2]
[336301252,1724767832059,-503.0,0.00010471,2]
[336301253,1724767832068,-150.99,0.00010505,2]
[336301254,1724767832078,-155.0,0.00010505,2]
[336301255,1724767832087,-155.0,0.00010566,2]
[336301256,1724767832096,-2454.7959,0.000106,2]
[336301258,1724767832106,-259.17,0.000107,2]
[336301259,1724767832115,-164.46104347,0.000107,2]
[336301260,1724767832127,-1000.0,0.000107,2]
[336301261,1724767832137,-1390.4031,0.000107,2]
[336301262,1724767832148,-8116.0801,0.000107,2]
[336301263,1724767832157,-5662.9713,0.000107,2]
[336301264,1724767832167,-14079.9361,0.000107,2]
[336301265,1724767832176,-972.67943787,0.000107,2]
[336301266,1724767832188,-723.53896213,0.000107,2]
[336301267,1724767832198,-372.45941771,0.000107,2]
[336301268,1724767832209,-1451.24090158,0.000107,2]
[336301269,1724767832220,-4674.35718071,0.000107,2]
[336301270,1724767832230,-560.2683,0.000107,2]
[336301271,1724767832239,-2087.3055,0.000107,2]
[336301272,1724767832249,-4241.171,0.000107,2]
[336301273,1724767832257,-1000.0,0.000107,2]
[336301274,1724767832267,-167.34408375,0.000107,2]
[336301275,1724767832276,-510.811,0.000107,2]
[336301276,1724767832285,-370.04907418,0.000107,2]
[336301277,1724767832294,-613.91486336,0.00010731,2]
[336301278,1724767832304,-2340.31099082,0.00010761,2]
[336301279,1724767832313,-613.91486336,0.00010762,2]
[336301280,1724767832323,-167.34408374,0.00010767,2]